fUST/lending_fUST_20240429
["ID","MTS","AMOUNT","RATE_DAILY","PERIOD"]
[324899915,1714403465832,-815.51,0.00047671,30]
[324899916,1714403465848,-1100.15,0.00047671,30]
[324899917,1714403465864,-500.0,0.00047671,21]
[324899918,1714403465879,-574.58,0.00047671,30]
[324899919,1714403465895,-500.0,0.00047671,30]
[324899920,1714403465912,-500.0,0.00047671,30]
[324899921,1714403465928,-500.0,0.00047671,30]
[324899922,1714403466041,-1146.41,0.00047671,30]
[324899923,1714403466052,-574.15,0.00047671,30]
[324899924,1714403466065,-500.0,0.00047671,30]
[324899925,1714403466076,-500.0,0.00047671,30]
[324899926,1714403466085,-500.0,0.00047671,30]
[324899927,1714403466095,-184.94182543,0.00047671,30]
[324899928,1714403466104,-500.0,0.00047671,30]
[324899929,1714403466114,-500.0,0.00047671,30]
[324899930,1714403466123,-760.28,0.00047671,30]
[324899931,1714403466134,-500.0,0.00047671,30]
[324899932,1714403466145,-849.64,0.00047671,30]
[324899933,1714403466155,-615.33,0.00047671,30]
[324899934,1714403466165,-507.18,0.00047671,30]
[324899935,1714403466174,-500.0,0.00047671,30]
[324899936,1714403466184,-500.0,0.00047671,30]
[324899937,1714403466193,-500.0,0.00047671,30]
[324899938,1714403466202,-787.88,0.00047671,30]
[324899939,1714403466212,-500.0,0.00047671,30]
[324899940,1714403466222,-500.0,0.00047671,30]
[324899941,1714403466231,-500.0,0.00047671,30]
[324899942,1714403466240,-712.0,0.00047671,30]
[324899943,1714403466251,-772.27,0.00047671,30]
[324899944,1714403466261,-500.0,0.00047671,30]
[324899945,1714403466271,-500.0,0.00047671,30]
[324899946,1714403466281,-500.0,0.00047671,30]
[324899947,1714403466290,-500.0,0.00047671,30]
[324899948,1714403466300,-638.16,0.00047671,30]
[324899949,1714403466309,-940.88,0.00047671,30]
[324899950,1714403466319,-706.66,0.00047671,30]
[324899951,1714403466329,-500.0,0.00047671,30]
[324899952,1714403466338,-500.0,0.00047671,30]
[324899953,1714403466347,-500.0,0.00047671,30]
[324899954,1714403466357,-500.0,0.00047671,30]
[324899955,1714403466366,-500.0,0.00047671,30]
[324899956,1714403466375,-500.0,0.00047671,30]
[324899957,1714403466388,-500.0,0.00047671,30]
[324899958,1714403466398,-500.0,0.00047671,30]
[324899959,1714403466408,-548.72816181,0.00047671,30]
[324899960,1714403466418,-500.0,0.00047671,30]
[324899961,1714403466428,-500.0,0.00047671,30]
[324899962,1714403466438,-752.15,0.00047671,30]
[324899963,1714403466448,-590.87,0.00047671,30]
[324899964,1714403466457,-987.93,0.00047671,30]
[324899965,1714403466467,-490.47,0.00047671,30]
[324899966,1714403466476,-500.0,0.00047671,30]
[324899967,1714403466486,-582.66,0.00047671,30]
[324899968,1714403466496,-367.29491943,0.00047671,30]
[324899969,1714403466506,-500.0,0.00047671,30]
[324899970,1714403466516,-627.5,0.00047671,30]
[324899971,1714403466526,-500.0,0.00047671,30]
[324899972,1714403466535,-500.0,0.00047671,30]
[324899973,1714403466545,-902.95,0.00047671,30]
[324899974,1714403466554,-500.0,0.00047671,30]
[324899975,1714403466564,-730.68,0.00047671,30]
[324899976,1714403466574,-599.07,0.00047671,30]
[324899977,1714403466584,-500.0,0.00047671,30]
[324899978,1714403466593,-572.62,0.00047671,30]
[324899979,1714403466603,-2164.00123012,0.0004788,30]
[324899980,1714403466612,-500.0,0.00047945,30]
[324899981,1714403466622,-500.0,0.00047945,30]
[324899982,1714403466633,-554.38,0.00047945,30]
[324899983,1714403466642,-500.0,0.00047945,30]
[324899984,1714403466651,-500.0,0.00047945,30]
[324899985,1714403466661,-692.31,0.00047945,30]
[324899986,1714403466670,-500.0,0.00047945,30]
[324899987,1714403466680,-500.0,0.00047945,30]
[324899988,1714403466689,-500.0,0.00047945,30]
[324899989,1714403466699,-500.0,0.00047945,30]
[324899990,1714403466708,-500.0,0.00047945,30]
[324899991,1714403466718,-645.73,0.00047945,30]
[324899992,1714403466728,-500.0,0.00047945,30]
[324899993,1714403466738,-510.83078383,0.00047945,30]
[324899994,1714403466747,-500.0,0.00047945,30]
[324899995,1714403466758,-500.0,0.00047945,30]
[324899996,1714403466767,-500.0,0.00047945,30]
[324899997,1714403466777,-500.0,0.00047945,30]
[324899998,1714403466787,-586.71950418,0.00047945,30]
[324899999,1714403466796,-580.34,0.00047945,30]
[324900000,1714403466806,-609.19,0.00047945,30]
[324900001,1714403466816,-500.0,0.00047945,30]
[324900002,1714403466826,-500.0,0.00047945,30]
[324900003,1714403466835,-500.0,0.00047945,30]
[324900004,1714403466845,-698.28,0.00047945,30]
[324900005,1714403466855,-500.0,0.00047945,30]
[324900006,1714403466864,-593.74,0.00047945,30]
[324900007,1714403466874,-517.52,0.00047945,30]
[324900008,1714403466889,-500.0,0.00047945,30]
[324900009,1714403466898,-580.52,0.00047945,30]
[324900010,1714403466908,-500.0,0.00047945,30]
[324900011,1714403466918,-500.0,0.00047945,30]
[324900012,1714403466928,-500.0,0.00047945,30]
[324900013,1714403466938,-660.77,0.00047945,30]
[324900014,1714403466948,-500.0,0.00047945,30]
[324900015,1714403466958,-500.02,0.00047945,30]
[324900016,1714403466971,-500.0,0.00047945,30]
[324900017,1714403466983,-500.0,0.00047945,30]
[324900018,1714403466993,-387.88498099,0.00047945,30]
[324900019,1714403467003,-500.0,0.00047945,30]
[324900020,1714403467014,-500.0,0.00047945,30]
[324900021,1714403467024,-572.38,0.00047945,30]
[324900022,1714403467033,-500.0,0.00047945,14]
[324900023,1714403467043,-594.15,0.00047945,30]
[324900024,1714403467054,-500.0,0.00047945,30]
[324900025,1714403467064,-500.0,0.00047945,30]
[324900026,1714403467074,-357.16257504,0.00047945,30]
[324900027,1714403467084,-503.59270218,0.00047945,30]
[324900028,1714403467094,-500.0,0.00047945,30]
[324900029,1714403467104,-500.0,0.00047945,30]
[324900030,1714403467114,-500.0,0.00047945,30]
[324900031,1714403467124,-500.0,0.00047945,30]
[324900032,1714403467135,-500.0,0.00047945,30]
[324900033,1714403467145,-500.0,0.00047945,30]
[324900034,1714403467154,-957.76,0.00047945,30]
[324900035,1714403467164,-500.0,0.00047945,30]
[324900036,1714403467174,-500.0,0.00047945,30]
[324900037,1714403467184,-881.98,0.00047945,30]
[324900038,1714403467194,-500.0,0.00047945,30]
[324900039,1714403467204,-905.7,0.00047945,30]
[324900040,1714403467214,-500.0,0.00047945,30]
[324900041,1714403467224,-500.0,0.00047945,30]
[324900042,1714403467234,-882.72,0.00047945,120]
[324900043,1714403467243,-500.0,0.00047945,30]
[324900044,1714403467253,-500.0,0.00047945,3]
[324900045,1714403467262,-500.0,0.00047945,30]
[324900046,1714403467272,-500.0,0.00047945,30]
[324900047,1714403467281,-500.0,0.00047945,30]
[324900048,1714403467291,-500.0,0.00047945,30]
[324900049,1714403467300,-500.0,0.00047945,30]
[324900050,1714403467309,-652.74,0.00047945,30]
[324900051,1714403467318,-534.54,0.00047945,30]
[324900052,1714403467328,-300.0,0.00047945,7]
[324900053,1714403467338,-500.0,0.00047945,30]
[324900054,1714403467348,-237.46709706,0.00047945,30]
[324900055,1714403467357,-500.0,0.00047945,30]
[324900056,1714403467366,-500.0,0.00047945,2]
[324900057,1714403467376,-654.11,0.00047945,30]
[324900058,1714403467387,-1249.99,0.00047945,30]
[324900059,1714403467396,-500.0,0.00047945,30]
[324900060,1714403467405,-500.0,0.00047945,30]
[324900061,1714403467415,-500.0,0.00047945,30]
[324900062,1714403467424,-903.12,0.00047945,7]
[324900063,1714403467435,-500.0,0.00047945,30]
[324900064,1714403467445,-1203.71,0.00047945,30]
[324900065,1714403467454,-500.0,0.00047945,30]
[324900066,1714403467464,-809.28,0.00047945,30]
[324900067,1714403467473,-500.29,0.00047945,30]
[324900068,1714403467483,-500.0,0.00047945,30]
[324900069,1714403467492,-500.0,0.00047945,30]
[324900070,1714403467501,-500.0,0.00047945,30]
[324900071,1714403467511,-500.0,0.00047945,30]
[324900072,1714403467520,-500.0,0.00047945,30]
[324900073,1714403467529,-500.0,0.00047945,30]
[324900074,1714403467539,-602.54,0.00047945,30]
[324900075,1714403467548,-520.25,0.00047945,30]
[324900076,1714403467558,-500.0,0.00047945,30]
[324900077,1714403467567,-1009.15,0.00047945,30]
[324900078,1714403467576,-782.67,0.00047945,30]
[324900079,1714403467586,-500.0,0.00047945,30]
[324900080,1714403467595,-500.0,0.00047945,30]
[324900081,1714403467605,-500.0,0.00047945,30]
[324900082,1714403467614,-519.15,0.00047945,30]
[324900083,1714403467623,-500.0,0.00047945,30]
[324900084,1714403467635,-615.64,0.00047945,30]
[324900085,1714403467644,-500.0,0.00047945,30]
[324900086,1714403467654,-500.0,0.00047945,30]
[324900087,1714403467664,-500.0,0.00047945,30]
[324900088,1714403467674,-500.0,0.00047945,30]
[324900089,1714403467683,-872.67,0.00047945,30]
[324900090,1714403467693,-500.0,0.00047945,30]
[324900091,1714403467703,-500.0,0.00047945,30]
[324900092,1714403467712,-500.0,0.00047945,30]
[324900093,1714403467722,-600.73,0.00047945,30]
[324900094,1714403467732,-500.0,0.00047945,30]
[324900095,1714403467742,-500.0,0.00047945,30]
[324900096,1714403467752,-505.91,0.00047945,30]
[324900097,1714403467762,-501.2,0.00047945,30]
[324900098,1714403467772,-850.95,0.00047945,30]
[324900099,1714403467781,-510.3,0.00047945,30]
[324900100,1714403467791,-1103.47,0.00047945,30]
[324900101,1714403467800,-764.98,0.00047945,30]
[324900102,1714403467810,-200.0,0.00047945,30]
[324900103,1714403467820,-880.79,0.00047945,30]
[324900104,1714403467830,-363.09289237,0.00047945,30]
[324900105,1714403467840,-502.4,0.00047945,30]
[324900106,1714403467849,-500.0,0.00047945,30]
[324900107,1714403467859,-541.86,0.00047945,30]
[324900108,1714403467868,-500.0,0.00047945,30]
[324900109,1714403467879,-7970.54,0.00047945,30]
[324900110,1714403467888,-590.14,0.00047945,30]
[324900111,1714403467898,-500.0,0.00047945,30]
[324900112,1714403467908,-821.44,0.00047945,30]
[324900113,1714403467918,-780.18,0.00047945,30]
[324900114,1714403467928,-720.95,0.00047945,30]
[324900115,1714403467938,-500.0,0.00047945,30]
[324900116,1714403467947,-500.0,0.00047945,30]
[324900117,1714403467956,-500.0,0.00047945,30]
[324900118,1714403467966,-1080.25,0.00047945,30]
[324900119,1714403467980,-500.0,0.00047945,30]
[324900120,1714403467990,-500.0,0.00047945,30]
[324900121,1714403468000,-500.0,0.00047945,30]
[324900122,1714403468011,-675.68,0.00047945,30]
[324900123,1714403468020,-500.0,0.00047945,30]
[324900124,1714403468031,-500.0,0.00047945,30]
[324900125,1714403468041,-611.97,0.00047945,30]
[324900126,1714403468051,-505.7,0.00047945,30]
[324900127,1714403468063,-500.0,0.00047945,30]
[324900128,1714403468072,-496.18434808,0.00047945,30]
[324900129,1714403468082,-815.51,0.00047945,30]
[324900130,1714403468092,-1100.15,0.00047945,30]
[324900131,1714403468101,-500.0,0.00047945,21]
[324900132,1714403468111,-574.58,0.00047945,30]
[324900133,1714403468120,-500.0,0.00047945,30]
[324900134,1714403468129,-500.0,0.00047945,30]
[324900135,1714403468222,-500.0,0.00047945,30]
[324900136,1714403468232,-1146.41,0.00047945,30]
[324900137,1714403468242,-574.15,0.00047945,30]
[324900138,1714403468253,-500.0,0.00047945,30]
[324900139,1714403468262,-500.0,0.00047945,30]
[324900140,1714403468272,-500.0,0.00047945,30]
[324900141,1714403468281,-500.0,0.00047945,30]
[324900142,1714403468291,-227.17040703,0.00047945,30]
[324900143,1714403468302,-760.28,0.00047945,30]
[324900144,1714403468311,-500.0,0.00047945,30]
[324900145,1714403468321,-849.64,0.00047945,30]
[324900146,1714403468331,-615.33,0.00047945,30]
[324900147,1714403468341,-507.18,0.00047945,30]
[324900148,1714403468351,-500.0,0.00047945,30]
[324900149,1714403468360,-500.0,0.00047945,30]
[324900150,1714403468370,-500.0,0.00047945,30]
[324900151,1714403468380,-787.88,0.00047945,30]
[324900152,1714403468389,-500.0,0.00047945,30]
[324900153,1714403468399,-500.0,0.00047945,30]
[324900154,1714403468408,-500.0,0.00047945,30]
[324900155,1714403468417,-712.0,0.00047945,30]
[324900156,1714403468427,-772.27,0.00047945,30]
[324900157,1714403468436,-500.0,0.00047945,30]
[324900158,1714403468446,-500.0,0.00047945,30]
[324900159,1714403468455,-500.0,0.00047945,30]
[324900160,1714403468464,-500.0,0.00047945,30]
[324900161,1714403468474,-638.16,0.00047945,30]
[324900162,1714403468483,-940.88,0.00047945,30]
[324900163,1714403468493,-706.66,0.00047945,30]
[324900164,1714403468503,-500.0,0.00047945,30]
[324900165,1714403468512,-500.0,0.00047945,30]
[324900166,1714403468521,-500.0,0.00047945,30]
[324900167,1714403468530,-234.01209731,0.00047945,30]
[324900168,1714403468540,-500.0,0.00047945,30]
[324900169,1714403468550,-500.0,0.00047945,30]
[324900170,1714403468559,-500.0,0.00047945,30]
[324900171,1714403468568,-344.01403891,0.00047945,30]
[324900172,1714403468578,-500.0,0.00047945,30]
[324900173,1714403468588,-500.0,0.00047945,30]
[324900174,1714403468597,-752.15,0.00047945,30]
[324900175,1714403468607,-590.87,0.00047945,30]
[324900176,1714403468616,-987.93,0.00047945,30]
[324900177,1714403468625,-500.0,0.00047945,30]
[324900178,1714403468636,-582.66,0.00047945,30]
[324900179,1714403468646,-500.0,0.00047945,30]
[324900180,1714403468656,-627.5,0.00047945,30]
[324900181,1714403468665,-500.0,0.00047945,30]
[324900182,1714403468674,-500.0,0.00047945,30]
[324900183,1714403468684,-902.95,0.00047945,30]
[324900184,1714403468693,-500.0,0.00047945,30]
[324900185,1714403468703,-730.68,0.00047945,30]
[324900186,1714403468712,-599.07,0.00047945,30]
[324900187,1714403468722,-500.0,0.00047945,30]
[324900188,1714403468731,-572.62,0.00047945,30]
[324900189,1714403468740,-160.0,0.00047947,7]
[324900190,1714403468749,-184.0,0.0004798,35]
[324900191,1714403468759,-184.0,0.0004799,35]
[324900192,1714403468768,-192.89,0.0004799,35]
[324900193,1714403468778,-5020.56322217,0.00048,120]
[324900194,1714403468787,-1000.0,0.00048,120]
[324900195,1714403468796,-221.65555556,0.00048164,120]
[324900196,1714403468806,-500.0,0.00048219,30]
[324900197,1714403468815,-500.0,0.00048219,30]
[324900198,1714403468824,-554.38,0.00048219,30]
[324900199,1714403468834,-500.0,0.00048219,30]
[324900200,1714403468843,-692.31,0.00048219,30]
[324900201,1714403468853,-500.0,0.00048219,30]
[324900202,1714403468862,-500.0,0.00048219,30]
[324900203,1714403468871,-500.0,0.00048219,30]
[324900204,1714403468881,-178.40752734,0.00048219,30]
[324900205,1714403468890,-500.0,0.00048219,30]
[324900206,1714403468899,-645.73,0.00048219,30]
[324900207,1714403468909,-500.0,0.00048219,30]
[324900208,1714403468918,-500.0,0.00048219,30]
[324900209,1714403468928,-500.0,0.00048219,30]
[324900210,1714403468938,-264.68478631,0.00048219,30]
[324900211,1714403468947,-500.0,0.00048219,30]
[324900212,1714403468957,-580.34,0.00048219,30]
[324900213,1714403468966,-609.19,0.00048219,30]
[324900214,1714403468976,-500.0,0.00048219,30]
[324900215,1714403468990,-500.0,0.00048219,30]
[324900216,1714403469000,-173.88138455,0.00048219,30]
[324900217,1714403469010,-698.28,0.00048219,30]
[324900218,1714403469021,-500.0,0.00048219,30]
[324900219,1714403469030,-593.74,0.00048219,30]
[324900220,1714403469039,-517.52,0.00048219,30]
[324900221,1714403469049,-500.0,0.00048219,30]
[324900222,1714403469061,-580.52,0.00048219,30]
[324900223,1714403469071,-500.0,0.00048219,30]
[324900224,1714403469081,-500.0,0.00048219,30]
[324900225,1714403469091,-500.0,0.00048219,30]
[324900226,1714403469101,-660.77,0.00048219,30]
[324900227,1714403469110,-500.0,0.00048219,30]
[324900228,1714403469120,-500.02,0.00048219,30]
[324900229,1714403469131,-500.0,0.00048219,30]
[324900230,1714403469140,-151.0,0.00048219,7]
[324900231,1714403469149,-500.0,0.00048219,30]
[324900232,1714403469159,-500.0,0.00048219,30]
[324900233,1714403469168,-500.0,0.00048219,30]
[324900234,1714403469179,-572.38,0.00048219,30]
[324900235,1714403469188,-520.9053355,0.00048219,14]
[324900236,1714403469197,-594.15,0.00048219,30]
[324900237,1714403469208,-590.0,0.00048219,30]
[324900238,1714403469217,-500.0,0.00048219,30]
[324900239,1714403469227,-500.0,0.00048219,30]
[324900240,1714403469236,-500.0,0.00048219,30]
[324900241,1714403469245,-151.0,0.00048219,7]
[324900242,1714403469256,-500.0,0.00048219,30]
[324900243,1714403469266,-500.0,0.00048219,30]
[324900244,1714403469275,-500.0,0.00048219,30]
[324900245,1714403469284,-500.0,0.00048219,30]
[324900246,1714403469294,-957.76,0.00048219,30]
[324900247,1714403469303,-500.0,0.00048219,30]
[324900248,1714403469312,-500.0,0.00048219,30]
[324900249,1714403469322,-881.98,0.00048219,30]
[324900250,1714403469331,-528.19107815,0.00048219,30]
[324900251,1714403469341,-905.7,0.00048219,30]
[324900252,1714403469350,-500.0,0.00048219,30]
[324900253,1714403469359,-500.0,0.00048219,30]
[324900254,1714403469369,-882.72,0.00048219,120]
[324900255,1714403469379,-500.0,0.00048219,30]
[324900256,1714403469388,-500.0,0.00048219,3]
[324900257,1714403469398,-500.0,0.00048219,30]
[324900258,1714403469408,-500.0,0.00048219,30]
[324900259,1714403469418,-500.0,0.00048219,30]
[324900260,1714403469429,-500.0,0.00048219,30]
[324900261,1714403469439,-500.0,0.00048219,30]
[324900262,1714403469448,-652.74,0.00048219,30]
[324900263,1714403469457,-534.54,0.00048219,30]
[324900264,1714403469466,-300.0,0.00048219,7]
[324900265,1714403469475,-500.0,0.00048219,30]
[324900266,1714403469485,-306.73577161,0.00048219,30]
[324900267,1714403469496,-500.0,0.00048219,2]
[324900268,1714403469505,-654.11,0.00048219,30]
[324900269,1714403469514,-1249.99,0.00048219,30]
[324900270,1714403469523,-500.0,0.00048219,30]
[324900271,1714403469533,-500.0,0.00048219,30]
[324900272,1714403469542,-500.0,0.00048219,30]
[324900273,1714403469551,-903.12,0.00048219,7]
[324900274,1714403469561,-500.0,0.00048219,30]
[324900275,1714403469571,-1203.71,0.00048219,30]
[324900276,1714403469580,-500.0,0.00048219,30]
[324900277,1714403469589,-809.28,0.00048219,30]
[324900278,1714403469598,-500.29,0.00048219,30]
[324900279,1714403469609,-500.0,0.00048219,30]
[324900280,1714403469619,-500.0,0.00048219,30]
[324900281,1714403469628,-500.0,0.00048219,30]
[324900282,1714403469637,-500.0,0.00048219,30]
[324900283,1714403469647,-176.6432035,0.00048219,30]
[324900284,1714403469656,-500.0,0.00048219,30]
[324900285,1714403469666,-602.54,0.00048219,30]
[324900286,1714403469675,-520.25,0.00048219,30]
[324900287,1714403469684,-500.0,0.00048219,30]
[324900288,1714403469693,-151.0,0.00048219,7]
[324900289,1714403469703,-1009.15,0.00048219,30]
[324900290,1714403469712,-782.67,0.00048219,30]
[324900291,1714403469722,-500.0,0.00048219,30]
[324900292,1714403469731,-1067.904186,0.00048219,7]
[324900293,1714403469740,-500.0,0.00048219,30]
[324900294,1714403469749,-500.0,0.00048219,30]
[324900295,1714403469760,-1067.904186,0.00048219,7]
[324900296,1714403469769,-519.15,0.00048219,30]
[324900297,1714403469779,-500.0,0.00048219,30]
[324900298,1714403469788,-615.64,0.00048219,30]
[324900299,1714403469798,-500.0,0.00048219,30]
[324900300,1714403469807,-500.0,0.00048219,30]
[324900301,1714403469817,-500.0,0.00048219,30]
[324900302,1714403469826,-217.99115113,0.00048219,30]
[324900303,1714403469835,-1092.826854,0.00048219,7]
[324900304,1714403469844,-872.67,0.00048219,30]
[324900305,1714403469854,-1092.826854,0.00048219,7]
[324900306,1714403469864,-500.0,0.00048219,30]
[324900307,1714403469873,-500.0,0.00048219,30]
[324900308,1714403469884,-151.0,0.00048219,7]
[324900309,1714403469894,-500.0,0.00048219,30]
[324900310,1714403469903,-600.73,0.00048219,30]
[324900311,1714403469913,-500.0,0.00048219,30]
[324900312,1714403469923,-500.0,0.00048219,30]
[324900313,1714403469933,-505.91,0.00048219,30]
[324900314,1714403469943,-501.2,0.00048219,30]
[324900315,1714403469953,-850.95,0.00048219,30]
[324900316,1714403469963,-510.3,0.00048219,30]
[324900317,1714403469977,-151.0,0.00048219,7]
[324900318,1714403469987,-1103.47,0.00048219,30]
[324900319,1714403469996,-764.98,0.00048219,30]
[324900320,1714403470006,-200.0,0.00048219,30]
[324900321,1714403470017,-880.79,0.00048219,30]
[324900322,1714403470027,-502.4,0.00048219,30]
[324900323,1714403470037,-949.860443,0.00048219,7]
[324900324,1714403470046,-949.860443,0.00048219,7]
[324900325,1714403470058,-500.0,0.00048219,30]
[324900326,1714403470068,-541.86,0.00048219,30]
[324900327,1714403470077,-500.0,0.00048219,30]
[324900328,1714403470087,-7970.54,0.00048219,30]
[324900329,1714403470096,-590.14,0.00048219,30]
[324900330,1714403470105,-500.0,0.00048219,30]
[324900331,1714403470114,-151.0,0.00048219,7]
[324900332,1714403470124,-821.44,0.00048219,30]
[324900333,1714403470135,-780.18,0.00048219,30]
[324900334,1714403470145,-720.95,0.00048219,30]
[324900335,1714403470154,-500.0,0.00048219,30]
[324900336,1714403470164,-500.0,0.00048219,30]
[324900337,1714403470174,-500.0,0.00048219,30]
[324900338,1714403470183,-1080.25,0.00048219,30]
[324900339,1714403470193,-500.0,0.00048219,30]
[324900340,1714403470202,-338.80192771,0.00048219,30]
[324900341,1714403470212,-151.0,0.00048219,7]
[324900342,1714403470221,-675.68,0.00048219,30]
[324900343,1714403470231,-309.76797208,0.00048219,30]
[324900344,1714403470240,-575.374773,0.00048219,7]
[324900345,1714403470250,-500.0,0.00048219,30]
[324900346,1714403470259,-500.0,0.00048219,30]
[324900347,1714403470268,-575.374773,0.00048219,7]
[324900348,1714403470277,-611.97,0.00048219,30]
[324900349,1714403470286,-505.7,0.00048219,30]
[324900350,1714403470295,-181.21296917,0.00048219,30]
[324900351,1714403470305,-815.51,0.00048219,30]
[324900352,1714403470314,-1100.15,0.00048219,30]
[324900353,1714403470323,-500.0,0.00048219,21]
[324900354,1714403470332,-574.58,0.00048219,30]
[324900355,1714403470342,-151.0,0.00048219,7]
[324900356,1714403470351,-500.0,0.00048219,30]
[324900357,1714403470360,-1000.812377,0.00048219,7]
[324900358,1714403470369,-500.0,0.00048219,30]
[324900359,1714403470378,-500.0,0.00048219,30]
[324900360,1714403470388,-1146.41,0.00048219,30]
[324900361,1714403470397,-466.666828,0.00048219,7]
[324900362,1714403470407,-1000.812377,0.00048219,7]
[324900363,1714403470416,-574.15,0.00048219,30]
[324900364,1714403470425,-500.0,0.00048219,30]
[324900365,1714403470434,-466.666828,0.00048219,7]
[324900366,1714403470443,-500.0,0.00048219,30]
[324900367,1714403470453,-500.0,0.00048219,30]
[324900368,1714403470462,-500.0,0.00048219,30]
[324900369,1714403470471,-760.28,0.00048219,30]
[324900370,1714403470481,-500.0,0.00048219,30]
[324900371,1714403470491,-849.64,0.00048219,30]
[324900372,1714403470500,-615.33,0.00048219,30]
[324900373,1714403470510,-507.18,0.00048219,30]
[324900374,1714403470519,-500.0,0.00048219,30]
[324900375,1714403470529,-500.0,0.00048219,30]
[324900376,1714403470538,-500.0,0.00048219,30]
[324900377,1714403470548,-787.88,0.00048219,30]
[324900378,1714403470559,-500.0,0.00048219,30]
[324900379,1714403470568,-312.807001,0.00048219,7]
[324900380,1714403470577,-500.0,0.00048219,30]
[324900381,1714403470678,-312.807001,0.00048219,7]
[324900382,1714403470688,-500.0,0.00048219,30]
[324900383,1714403470698,-712.0,0.00048219,30]
[324900384,1714403470708,-772.27,0.00048219,30]
[324900385,1714403470718,-500.0,0.00048219,30]
[324900386,1714403470728,-500.0,0.00048219,30]
[324900387,1714403470737,-500.0,0.00048219,30]
[324900388,1714403470746,-500.0,0.00048219,30]
[324900389,1714403470755,-638.16,0.00048219,30]
[324900390,1714403470765,-940.88,0.00048219,30]
[324900391,1714403470775,-706.66,0.00048219,30]
[324900392,1714403470785,-500.0,0.00048219,30]
[324900393,1714403470794,-500.0,0.00048219,30]
[324900394,1714403470804,-500.0,0.00048219,30]
[324900395,1714403470813,-500.0,0.00048219,30]
[324900396,1714403470823,-500.0,0.00048219,30]
[324900397,1714403470833,-151.0,0.00048219,7]
[324900398,1714403470842,-500.0,0.00048219,30]
[324900399,1714403470852,-302.016416,0.00048219,7]
[324900400,1714403470862,-151.0,0.00048219,7]
[324900401,1714403470871,-302.016416,0.00048219,7]
[324900402,1714403470883,-500.0,0.00048219,30]
[324900403,1714403470892,-500.0,0.00048219,30]
[324900404,1714403470903,-999.0,0.00048219,20]
[324900405,1714403470913,-752.15,0.00048219,30]
[324900406,1714403470922,-590.87,0.00048219,30]
[324900407,1714403470932,-987.93,0.00048219,30]
[324900408,1714403470941,-500.0,0.00048219,30]
[324900409,1714403470950,-582.66,0.00048219,30]
[324900410,1714403470960,-569.047712,0.00048219,7]
[324900411,1714403470970,-190.869089,0.00048219,7]
[324900412,1714403470984,-500.0,0.00048219,30]
[324900413,1714403470994,-627.5,0.00048219,30]
[324900414,1714403471003,-190.869089,0.00048219,7]